fUSD/lending_fUSD_20260515
["ID","MTS","AMOUNT","RATE_DAILY","PERIOD"]
[422301354,1778800243000,-1100.0,0.00021725,2]
[422301357,1778800243000,-153.0,0.00021726,2]
[422301358,1778800243000,-950.0,0.00021726,2]
[422301360,1778800243000,-950.0,0.00021726,2]
[422301401,1778800243000,-500.0,0.00021983,2]
[422301361,1778800243000,-950.0,0.00021726,2]
[422301364,1778800243000,-950.0,0.00021726,2]
[422301362,1778800243000,-950.0,0.00021726,2]
[422301363,1778800243000,-950.0,0.00021726,2]
[422301365,1778800243000,-950.0,0.00021726,2]
[422301367,1778800243000,-477.0,0.00021726,2]
[422301369,1778800243000,-1800.0,0.00021728,2]
[422301368,1778800243000,-1800.0,0.00021728,2]
[422301366,1778800243000,-950.0,0.00021726,2]
[422301372,1778800243000,-1800.0,0.00021728,2]
[422301370,1778800243000,-1800.0,0.00021728,2]
[422301404,1778800243000,-276.0,0.00022,2]
[422301391,1778800243000,-150.0,0.00021918,2]
[422301405,1778800243000,-522.0,0.00022,2]
[422301438,1778800243000,-154.0,0.00023,30]
[422301437,1778800243000,-154.0,0.00023,30]
[422301439,1778800243000,-154.0,0.00023,30]
[422301440,1778800243000,-154.0,0.00023,30]
[422301441,1778800243000,-154.0,0.00023,30]
[422301442,1778800243000,-154.0,0.00023,30]
[422301443,1778800243000,-154.0,0.00023,30]
[422301445,1778800243000,-154.0,0.00023,30]
[422301444,1778800243000,-154.0,0.00023,30]
[422301448,1778800243000,-154.0,0.00023,30]
[422301446,1778800243000,-154.0,0.00023,30]
[422301447,1778800243000,-154.0,0.00023,30]
[422301450,1778800243000,-154.0,0.00023,30]
[422301431,1778800243000,-522.0,0.00023,2]
[422301449,1778800243000,-154.0,0.00023,30]
[422301453,1778800243000,-154.0,0.00023,30]
[422301452,1778800243000,-154.0,0.00023,30]
[422301455,1778800243000,-154.0,0.00023,30]
[422301456,1778800243000,-154.0,0.00023,30]
[422301457,1778800243000,-154.0,0.00023,30]
[422301454,1778800243000,-154.0,0.00023,30]
[422301458,1778800243000,-154.0,0.00023,30]
[422301461,1778800243000,-154.0,0.00023,30]
[422301403,1778800243000,-165.79,0.00022,2]
[422301462,1778800243000,-154.0,0.00023,30]
[422301459,1778800243000,-154.0,0.00023,30]
[422301464,1778800243000,-159.0,0.00023,30]
[422301463,1778800243000,-162.0,0.00023,30]
[422301451,1778800243000,-154.0,0.00023,30]
[422301433,1778800243000,-166.0,0.00023,30]
[422301460,1778800243000,-154.0,0.00023,30]
[422301432,1778800243000,-3245.0,0.00023,2]
[422301409,1778800243000,-286.0,0.00022,2]
[422301434,1778800243000,-154.0,0.00023,30]
[422301406,1778800243000,-3245.0,0.00022,2]
[422301410,1778800243000,-906.0,0.00022,2]
[422301407,1778800243000,-4191.0,0.00022,2]
[422301411,1778800243000,-476.0,0.00022,2]
[422301412,1778800243000,-301.0,0.00022,2]
[422301414,1778800243000,-485.0,0.00022,2]
[422301413,1778800243000,-11709.58328555,0.00022,4]
[422301415,1778800243000,-1953.0,0.00022,2]
[422301417,1778800243000,-165.78,0.00022,2]
[422301420,1778800243000,-328.22543164,0.00022407,2]
[422301422,1778800243000,-328.22543163,0.00022407,2]
[422301408,1778800243000,-396.0,0.00022,2]
[422301416,1778800243000,-191.68501,0.00022,3]
[422301436,1778800243000,-154.0,0.00023,30]
[422301430,1778800243000,-200.0,0.00023,30]
[422301429,1778800243000,-276.0,0.00023,2]
[422301428,1778800243000,-718.0,0.00023,2]
[422301425,1778800243000,-35995.69229312,0.000225,2]
[422301427,1778800243000,-200.0,0.00023,30]
[422301426,1778800243000,-150.0,0.000225,2]
[422301424,1778800243000,-319.81,0.00022466,2]
[422301421,1778800243000,-328.22543163,0.00022407,2]
[422301418,1778800243000,-151.0,0.000223,30]
[422301419,1778800243000,-2458.5,0.00022353,2]
[422301435,1778800243000,-154.0,0.00023,30]
[422301423,1778800243000,-300.65,0.00022466,2]
[422301504,1778800244000,-150.0,0.00023765,2]
[422301500,1778800244000,-192.979,0.00023765,2]
[422301501,1778800244000,-150.0,0.00023765,2]
[422301493,1778800244000,-208.4634798,0.00023,117]
[422301498,1778800244000,-174.0,0.00023765,2]
[422301497,1778800244000,-401.70812466,0.000235,2]
[422301494,1778800244000,-1953.0,0.00023,2]
[422301496,1778800244000,-725.55256888,0.00023288,2]
[422301499,1778800244000,-150.0,0.00023765,2]
[422301505,1778800244000,-3542.0,0.00023765,2]
[422301509,1778800244000,-1270.0,0.00023765,2]
[422301506,1778800244000,-625.0,0.00023765,2]
[422301503,1778800244000,-150.0,0.00023765,2]
[422301507,1778800244000,-1354.0,0.00023765,2]
[422301510,1778800244000,-150.0,0.00023765,2]
[422301511,1778800244000,-1223.0,0.00023765,2]
[422301513,1778800244000,-6052.0,0.00023765,2]
[422301512,1778800244000,-3630.0,0.00023765,2]
[422301514,1778800244000,-873.62,0.000238,7]
[422301516,1778800244000,-718.0,0.00024,2]
[422301492,1778800244000,-3373.91134611,0.00023,2]
[422301465,1778800244000,-4191.0,0.00023,2]
[422301508,1778800244000,-926.0,0.00023765,2]
[422301495,1778800244000,-155.67492755,0.000232,2]
[422301478,1778800244000,-159.0,0.00023,30]
[422301490,1778800244000,-1000.0,0.00023,14]
[422301515,1778800244000,-8248.76,0.00023833,2]
[422301467,1778800244000,-159.0,0.00023,30]
[422301466,1778800244000,-159.0,0.00023,30]
[422301470,1778800244000,-159.0,0.00023,30]
[422301469,1778800244000,-159.0,0.00023,30]
[422301468,1778800244000,-159.0,0.00023,30]
[422301472,1778800244000,-159.0,0.00023,30]
[422301473,1778800244000,-159.0,0.00023,30]
[422301471,1778800244000,-159.0,0.00023,30]
[422301474,1778800244000,-159.0,0.00023,30]
[422301476,1778800244000,-159.0,0.00023,30]
[422301491,1778800244000,-311277.04236771,0.00023,2]
[422301475,1778800244000,-159.0,0.00023,30]
[422301480,1778800244000,-159.0,0.00023,30]
[422301479,1778800244000,-159.0,0.00023,30]
[422301483,1778800244000,-396.0,0.00023,2]
[422301482,1778800244000,-200.0,0.00023,30]
[422301484,1778800244000,-286.0,0.00023,2]
[422301481,1778800244000,-159.0,0.00023,30]
[422301487,1778800244000,-4754.33510122,0.00023,2]
[422301485,1778800244000,-906.0,0.00023,2]
[422301486,1778800244000,-476.0,0.00023,2]
[422301489,1778800244000,-485.0,0.00023,2]
[422301488,1778800244000,-301.0,0.00023,2]
[422301477,1778800244000,-159.0,0.00023,30]
[422301520,1778800244000,-4191.0,0.00024,2]
[422301502,1778800244000,-150.0,0.00023765,2]
[422301518,1778800244000,-522.0,0.00024,2]
[422301551,1778800244000,-757.34,0.000248,14]
[422301554,1778800244000,-500.0,0.00024932,2]
[422301550,1778800244000,-150.0,0.00024658,2]
[422301552,1778800244000,-500.0,0.00024932,2]
[422301553,1778800244000,-500.0,0.00024932,2]
[422301555,1778800244000,-500.0,0.00024932,2]
[422301556,1778800244000,-500.0,0.00024932,2]
[422301557,1778800244000,-500.0,0.00024932,2]
[422301558,1778800244000,-252.07275904,0.00024946,2]
[422301559,1778800244000,-628.0,0.00024959,2]
[422301561,1778800244000,-721.35142774,0.00025,2]
[422301548,1778800244000,-725.55256888,0.00024658,2]
[422301563,1778800244000,-540.07597307,0.00025,2]
[422301564,1778800244000,-3259.45446449,0.00025,2]
[422301560,1778800244000,-6445.64661898,0.00025,2]
[422301567,1778800244000,-286.01962833,0.00025,2]
[422301565,1778800244000,-4198.87215205,0.00025,2]
[422301566,1778800244000,-407.0145651,0.00025,2]
[422301569,1778800244000,-210.17904466,0.00025,2]
[422301568,1778800244000,-1128.36314486,0.00025,2]
[422301570,1778800244000,-465.49106548,0.00025,60]
[422301571,1778800244000,-921.62383988,0.00025,2]
[422301572,1778800244000,-1808.00850147,0.00025,2]
[422301517,1778800244000,-276.0,0.00024,2]
[422301562,1778800244000,-277.0,0.00025,2]
[422301549,1778800244000,-500.0,0.00024658,2]
[422301519,1778800244000,-3245.0,0.00024,2]
[422301546,1778800244000,-1000.0,0.00024658,2]
[422301522,1778800244000,-286.0,0.00024,2]
[422301521,1778800244000,-396.0,0.00024,2]
[422301523,1778800244000,-1036.98591685,0.00024,2]
[422301525,1778800244000,-10593.2705128,0.00024,14]
[422301527,1778800244000,-3600.0,0.00024,2]
[422301524,1778800244000,-906.0,0.00024,2]
[422301531,1778800244000,-1953.0,0.00024,2]
[422301529,1778800244000,-1253.87965228,0.00024,2]
[422301528,1778800244000,-301.0,0.00024,2]
[422301530,1778800244000,-485.0,0.00024,2]
[422301533,1778800244000,-279.83,0.0002411,2]
[422301532,1778800244000,-263.07,0.0002411,2]
[422301526,1778800244000,-476.0,0.00024,2]
[422301535,1778800244000,-2458.5,0.00024324,2]
[422301544,1778800244000,-1253.78,0.0002456,2]
[422301534,1778800244000,-2599.64318728,0.0002421,2]
[422301545,1778800244000,-1253.78,0.0002456,2]
[422301543,1778800244000,-1253.79,0.0002456,2]
[422301540,1778800244000,-1253.78,0.00024558,2]
[422301541,1778800244000,-1253.78,0.00024558,2]
[422301547,1778800244000,-857.14,0.00024658,2]
[422301536,1778800244000,-628.0,0.00024397,2]
[422301538,1778800244000,-1253.78,0.00024556,2]
[422301539,1778800244000,-1253.78,0.00024556,2]
[422301537,1778800244000,-200.0,0.000245,2]
[422301542,1778800244000,-1253.78,0.00024558,2]
[422301616,1778800245000,-1669.73,0.00026027,2]
[422301618,1778800245000,-1660.48,0.00026027,2]
[422301614,1778800245000,-2000.96,0.00026027,2]
[422301613,1778800245000,-725.55256888,0.00026027,2]
[422301611,1778800245000,-4580.81237175,0.00026,2]
[422301610,1778800245000,-6445.64661898,0.00026,2]
[422301608,1778800245000,-9315.45,0.000259,2]
[422301609,1778800245000,-608.54956322,0.0002599,2]
[422301604,1778800245000,-214.95940296,0.000258,7]
[422301601,1778800245000,-2328.6,0.00025786,2]
[422301612,1778800245000,-219.24301899,0.00026,2]
[422301607,1778800245000,-40378.48120981,0.0002589,5]
[422301629,1778800245000,-235.0,0.00026027,2]
[422301617,1778800245000,-665.24,0.00026027,2]
[422301621,1778800245000,-670.12,0.00026027,2]
[422301622,1778800245000,-187.91,0.00026027,7]
[422301624,1778800245000,-199.88,0.00026027,7]
[422301620,1778800245000,-1007.75,0.00026027,2]
[422301626,1778800245000,-300.0,0.00026027,2]
[422301636,1778800245000,-283.0,0.00026027,2]
[422301627,1778800245000,-300.0,0.00026027,2]
[422301631,1778800245000,-300.0,0.00026027,2]
[422301635,1778800245000,-200.0,0.00026027,2]
[422301606,1778800245000,-500.0,0.00025859,2]
[422301633,1778800245000,-150.0,0.00026027,2]
[422301615,1778800245000,-1027.42,0.00026027,2]
[422301605,1778800245000,-500.0,0.00025859,2]
[422301591,1778800245000,-1070.75003166,0.00025343,5]
[422301602,1778800245000,-388.47,0.00025786,2]
[422301573,1778800245000,-478.39684226,0.00025,2]
[422301581,1778800245000,-214.95940296,0.00025,7]
[422301576,1778800245000,-618.67725719,0.00025,2]
[422301575,1778800245000,-318.54203541,0.00025,2]
[422301574,1778800245000,-540.0,0.00025,2]
[422301577,1778800245000,-3082.65079527,0.00025,2]
[422301580,1778800245000,-105610.57396544,0.00025,7]
[422301578,1778800245000,-539.61993048,0.00025,2]
[422301579,1778800245000,-502.72337345,0.00025,2]
[422301583,1778800245000,-5804.81379214,0.00025,2]
[422301582,1778800245000,-2127.06986416,0.00025,2]
[422301584,1778800245000,-150.0,0.00025,2]
[422301585,1778800245000,-1961.12908863,0.00025,2]
[422301586,1778800245000,-208.3309892,0.00025,30]
[422301587,1778800245000,-208.3309892,0.00025,7]
[422301588,1778800245000,-165.78,0.0002518,7]
[422301590,1778800245000,-1088.30085738,0.00025343,5]
[422301589,1778800245000,-6445.64661898,0.000253,2]
[422301593,1778800245000,-1436.85990877,0.00025343,5]
[422301592,1778800245000,-1020.63285941,0.00025343,5]
[422301595,1778800245000,-628.0,0.00025521,3]
[422301594,1778800245000,-6445.64661898,0.000255,2]
[422301596,1778800245000,-345.08,0.00025644,2]
[422301597,1778800245000,-873.62,0.000257,7]
[422301599,1778800245000,-700.09,0.00025786,2]
[422301598,1778800245000,-8248.76,0.00025749,7]
[422301600,1778800245000,-953.07,0.00025786,2]
[422301603,1778800245000,-6445.64661898,0.000258,2]
[422301632,1778800245000,-192.0,0.00026027,2]
[422301619,1778800245000,-1967.28,0.00026027,2]
[422301637,1778800245000,-155.0,0.00026027,2]
[422301669,1778800245000,-1027.42,0.00026142,7]
[422301671,1778800245000,-665.24,0.00026142,7]
[422301668,1778800245000,-2000.96,0.00026142,7]
[422301670,1778800245000,-1669.73,0.00026142,7]
[422301675,1778800245000,-2000.96,0.00026171,7]
[422301674,1778800245000,-1007.75,0.00026142,7]
[422301673,1778800245000,-1967.28,0.00026142,7]
[422301677,1778800245000,-1669.73,0.00026171,7]
[422301676,1778800245000,-1027.42,0.00026171,7]
[422301678,1778800245000,-665.24,0.00026171,30]
[422301679,1778800245000,-1660.48,0.00026171,7]
[422301680,1778800245000,-1967.28,0.00026171,7]
[422301672,1778800245000,-1660.48,0.00026142,7]
[422301682,1778800245000,-160.0,0.000262,30]
[422301683,1778800245000,-2000.96,0.000262,2]
[422301687,1778800245000,-1660.48,0.000262,2]
[422301685,1778800245000,-1669.73,0.000262,2]
[422301684,1778800245000,-1027.42,0.000262,2]
[422301686,1778800245000,-665.24,0.000262,2]
[422301688,1778800245000,-1967.28,0.000262,2]
[422301690,1778800245000,-2000.96,0.00026229,7]
[422301689,1778800245000,-1007.75,0.000262,2]
[422301691,1778800245000,-1027.42,0.00026229,7]
[422301693,1778800245000,-665.24,0.00026229,7]
[422301692,1778800245000,-1669.73,0.00026229,7]
[422301634,1778800245000,-249.0,0.00026027,2]
[422301681,1778800245000,-1007.75,0.00026171,7]
[422301667,1778800245000,-1007.75,0.00026113,2]
[422301694,1778800245000,-1660.48,0.00026229,7]
[422301666,1778800245000,-1967.28,0.00026113,2]
[422301665,1778800245000,-1660.48,0.00026113,2]
[422301639,1778800245000,-250.0,0.00026027,2]
[422301638,1778800245000,-250.0,0.00026027,2]
[422301640,1778800245000,-189.0,0.00026027,2]
[422301643,1778800245000,-1027.42,0.00026055,7]
[422301641,1778800245000,-500.0,0.00026028,2]
[422301645,1778800245000,-665.24,0.00026055,7]
[422301647,1778800245000,-1967.28,0.00026055,7]
[422301642,1778800245000,-2000.96,0.00026055,7]
[422301644,1778800245000,-1669.73,0.00026055,7]
[422301646,1778800245000,-1660.48,0.00026055,7]
[422301650,1778800245000,-628.0,0.00026082,3]
[422301649,1778800245000,-670.12,0.00026055,7]
[422301648,1778800245000,-1007.75,0.00026055,7]
[422301630,1778800245000,-300.0,0.00026027,2]
[422301654,1778800245000,-665.24,0.00026084,30]
[422301651,1778800245000,-2000.96,0.00026084,2]
[422301656,1778800245000,-1967.28,0.00026084,2]
[422301663,1778800245000,-1669.73,0.00026113,2]
[422301658,1778800245000,-670.12,0.00026084,30]
[422301660,1778800245000,-160.0,0.000261,7]
[422301662,1778800245000,-1027.42,0.00026113,2]
[422301664,1778800245000,-665.24,0.00026113,2]
[422301659,1778800245000,-363.0,0.00026099,7]
[422301661,1778800245000,-2000.96,0.00026113,2]
[422301653,1778800245000,-1669.73,0.00026084,2]
[422301652,1778800245000,-1027.42,0.00026084,2]
[422301657,1778800245000,-1007.75,0.00026084,2]
[422301655,1778800245000,-1660.48,0.00026084,2]
[422301736,1778800246000,-1007.75,0.00026373,2]
[422301728,1778800246000,-2251.65069118,0.00026373,2]
[422301729,1778800246000,-3678.22055067,0.00026373,2]
[422301727,1778800246000,-263.50783151,0.00026373,2]
[422301730,1778800246000,-2000.96,0.00026373,2]
[422301732,1778800246000,-1669.73,0.00026373,2]
[422301733,1778800246000,-665.24,0.00026373,2]
[422301731,1778800246000,-1027.42,0.00026373,2]
[422301734,1778800246000,-1660.48,0.00026373,2]
[422301735,1778800246000,-1967.28,0.00026373,2]
[422301726,1778800246000,-1007.75,0.00026344,7]
[422301741,1778800246000,-1669.73,0.00026402,7]
[422301695,1778800246000,-1967.28,0.00026229,7]
[422301739,1778800246000,-2000.96,0.00026402,7]
[422301738,1778800246000,-27845.66932154,0.000264,2]
[422301747,1778800246000,-1027.42,0.00026431,2]
[422301725,1778800246000,-1967.28,0.00026344,7]
[422301744,1778800246000,-1967.28,0.00026402,7]
[422301740,1778800246000,-1027.42,0.00026402,7]
[422301743,1778800246000,-1660.48,0.00026402,7]
[422301745,1778800246000,-1007.75,0.00026402,7]
[422301742,1778800246000,-665.24,0.00026402,7]
[422301748,1778800246000,-1669.73,0.00026431,2]
[422301746,1778800246000,-2000.96,0.00026431,2]
[422301750,1778800246000,-1660.48,0.00026431,2]
[422301737,1778800246000,-200.0,0.0002639,7]
[422301724,1778800246000,-1660.48,0.00026344,7]
[422301717,1778800246000,-1660.48,0.00026315,7]
[422301720,1778800246000,-2000.96,0.00026344,7]
[422301749,1778800246000,-665.24,0.00026431,30]
[422301700,1778800246000,-665.24,0.00026257,30]
[422301698,1778800246000,-1027.42,0.00026257,2]
[422301699,1778800246000,-1669.73,0.00026257,2]
[422301696,1778800246000,-1007.75,0.00026229,7]
[422301697,1778800246000,-2000.96,0.00026257,2]
[422301701,1778800246000,-1660.48,0.00026257,2]
[422301702,1778800246000,-1967.28,0.00026257,2]
[422301703,1778800246000,-1007.75,0.00026257,2]
[422301705,1778800246000,-1027.42,0.00026286,2]
[422301704,1778800246000,-2000.96,0.00026286,2]
[422301706,1778800246000,-1669.73,0.00026286,2]
[422301707,1778800246000,-665.24,0.00026286,2]
[422301708,1778800246000,-1660.48,0.00026286,2]
[422301711,1778800246000,-2458.5,0.00026296,2]
[422301710,1778800246000,-1007.75,0.00026286,2]
[422301712,1778800246000,-6445.64661898,0.000263,2]
[422301713,1778800246000,-2000.96,0.00026315,7]
[422301714,1778800246000,-1027.42,0.00026315,7]
[422301716,1778800246000,-665.24,0.00026315,7]
[422301715,1778800246000,-1669.73,0.00026315,7]
[422301719,1778800246000,-1007.75,0.00026315,7]
[422301723,1778800246000,-665.24,0.00026344,30]
[422301721,1778800246000,-1027.42,0.00026344,7]
[422301718,1778800246000,-1967.28,0.00026315,7]
[422301722,1778800246000,-1669.73,0.00026344,7]
[422301709,1778800246000,-1967.28,0.00026286,2]
[422301752,1778800246000,-1007.75,0.00026431,2]
[422301755,1778800246000,-1669.73,0.00026459,2]
[422301784,1778800246000,-2001.09,0.00026575,7]
[422301786,1778800246000,-667.51,0.00026575,7]
[422301787,1778800246000,-1669.88,0.00026575,7]
[422301788,1778800246000,-665.34,0.00026575,7]
[422301789,1778800246000,-1660.58,0.00026575,7]
[422301790,1778800246000,-1967.41,0.00026575,7]
[422301795,1778800246000,-150.0,0.00026765,2]
[422301794,1778800246000,-628.0,0.00026644,4]
[422301791,1778800246000,-1007.86,0.00026575,7]
[422301793,1778800246000,-500.0,0.00026635,2]
[422301792,1778800246000,-200.0,0.0002659,20]
[422301796,1778800246000,-150.0,0.00026765,2]
[422301798,1778800246000,-150.0,0.00026765,2]
[422301797,1778800246000,-150.0,0.00026765,2]
[422301799,1778800246000,-150.0,0.00026765,2]
[422301801,1778800246000,-150.0,0.00026765,2]
[422301803,1778800246000,-625.0,0.00026765,2]
[422301800,1778800246000,-150.0,0.00026765,2]
[422301804,1778800246000,-1354.0,0.00026765,2]
[422301802,1778800246000,-3542.0,0.00026765,2]
[422301805,1778800246000,-926.0,0.00026765,2]
[422301806,1778800246000,-1270.0,0.00026765,2]
[422301807,1778800246000,-150.0,0.00026765,2]
[422301808,1778800246000,-1223.0,0.00026765,2]
[422301751,1778800246000,-1967.28,0.00026431,2]
[422301785,1778800246000,-1027.61,0.00026575,7]
[422301783,1778800246000,-1007.75,0.00026546,2]
[422301767,1778800246000,-1007.75,0.00026488,7]
[422301781,1778800246000,-1660.48,0.00026546,2]
[422301753,1778800246000,-2000.96,0.00026459,2]
[422301782,1778800246000,-1967.28,0.00026546,2]
[422301757,1778800246000,-1660.48,0.00026459,2]
[422301759,1778800246000,-1007.75,0.00026459,2]
[422301754,1778800246000,-1027.42,0.00026459,2]
[422301756,1778800246000,-665.24,0.00026459,2]
[422301758,1778800246000,-1967.28,0.00026459,2]
[422301762,1778800246000,-1027.42,0.00026488,7]
[422301761,1778800246000,-2000.96,0.00026488,7]
[422301763,1778800246000,-1669.73,0.00026488,7]
[422301764,1778800246000,-665.24,0.00026488,7]
[422301765,1778800246000,-1660.48,0.00026488,7]
[422301770,1778800246000,-2000.96,0.00026517,7]
[422301760,1778800246000,-160.90301841,0.00026488,40]
[422301766,1778800246000,-1967.28,0.00026488,7]
[422301768,1778800246000,-6445.64661898,0.000265,2]
[422301777,1778800246000,-2000.96,0.00026546,2]
[422301778,1778800246000,-1027.42,0.00026546,2]
[422301779,1778800246000,-1669.73,0.00026546,2]
[422301776,1778800246000,-1007.75,0.00026517,7]
[422301775,1778800246000,-1967.28,0.00026517,7]
[422301780,1778800246000,-665.24,0.00026546,2]
[422301772,1778800246000,-1669.73,0.00026517,7]
[422301773,1778800246000,-665.24,0.00026517,30]
[422301771,1778800246000,-1027.42,0.00026517,7]
[422301769,1778800246000,-214.95940296,0.000265,7]
[422301774,1778800246000,-1660.48,0.00026517,7]
[422301852,1778800247000,-420.019774,0.00027397,2]
[422301851,1778800247000,-348.382631,0.00027397,2]
[422301853,1778800247000,-420.019774,0.00027397,2]
[422301849,1778800247000,-348.382631,0.00027397,2]
[422301847,1778800247000,-300.0,0.00027397,2]
[422301848,1778800247000,-348.382631,0.00027397,2]
[422301843,1778800247000,-151.0,0.00027397,2]
[422301846,1778800247000,-151.0,0.00027397,2]
[422301841,1778800247000,-151.0,0.00027397,2]
[422301844,1778800247000,-151.0,0.00027397,2]
[422301840,1778800247000,-1464.95,0.00027397,2]
[422301845,1778800247000,-151.0,0.00027397,2]
[422301850,1778800247000,-348.382631,0.00027397,2]
[422301861,1778800247000,-1861.36,0.000274,14]
[422301854,1778800247000,-420.019774,0.00027397,2]
[422301855,1778800247000,-420.019774,0.00027397,2]
[422301857,1778800247000,-5194.84,0.00027397,10]
[422301859,1778800247000,-500.0,0.00027398,2]
[422301858,1778800247000,-857.14,0.00027397,2]
[422301865,1778800247000,-500.0,0.00027434,14]
[422301863,1778800247000,-3122.72,0.000274,7]
[422301862,1778800247000,-2209.03,0.000274,7]
[422301867,1778800247000,-519.29,0.00027497,7]
[422301860,1778800247000,-873.62,0.000274,7]
[422301864,1778800247000,-6618.0,0.000274,7]
[422301868,1778800247000,-8248.76,0.00027665,7]
[422301839,1778800247000,-526.4,0.00027397,2]
[422301856,1778800247000,-606.92,0.00027397,20]
[422301837,1778800247000,-2000.0,0.00027397,7]
[422301826,1778800247000,-1916.83374946,0.00027357,7]
[422301838,1778800247000,-2000.0,0.00027397,7]
[422301809,1778800247000,-3630.0,0.00026765,2]
[422301810,1778800247000,-6052.0,0.00026765,2]
[422301811,1778800247000,-202.01375838,0.0002679,20]
[422301813,1778800247000,-150.0,0.00026849,2]
[422301814,1778800247000,-2000.0,0.00027,2]
[422301815,1778800247000,-2570.744474,0.0002701,2]
[422301812,1778800247000,-6445.64661898,0.000268,2]
[422301816,1778800247000,-500.0,0.00027034,2]
[422301817,1778800247000,-6445.64661898,0.000271,2]
[422301818,1778800247000,-6618.0,0.000271,7]
[422301821,1778800247000,-628.0,0.00027205,4]
[422301819,1778800247000,-159.41342413,0.00027123,20]
[422301820,1778800247000,-500.92683196,0.00027153,2]
[422301822,1778800247000,-5024.36972956,0.0002722,2]
[422301825,1778800247000,-354.38384318,0.000273,30]
[422301866,1778800247000,-789.58,0.00027448,2]
[422301824,1778800247000,-354.38384319,0.000273,30]
[422301823,1778800247000,-6445.64661898,0.000273,2]
[422301830,1778800247000,-2055.32538564,0.00027397,2]
[422301827,1778800247000,-2000.0,0.00027367,7]
[422301828,1778800247000,-2000.0,0.00027377,7]
[422301829,1778800247000,-2000.0,0.00027387,7]
[422301831,1778800247000,-1598.58560445,0.00027397,30]
[422301833,1778800247000,-1500.0,0.00027397,2]
[422301834,1778800247000,-2000.0,0.00027397,7]
[422301832,1778800247000,-186.4,0.00027397,7]
[422301836,1778800247000,-151.16892255,0.00027397,2]
[422301835,1778800247000,-1009.93,0.00027397,2]
[422301869,1778800247000,-318.55,0.00027722,2]
[422301842,1778800247000,-1017.61,0.00027397,2]
[422301871,1778800247000,-500.0,0.000278,7]
[422301901,1778800247000,-469.39618369,0.0002847,2]
[422301904,1778800247000,-500.0,0.00028767,120]
[422301900,1778800247000,-165.78,0.0002836,7]
[422301903,1778800247000,-180.24546421,0.00028593,2]
[422301909,1778800247000,-504.80529568,0.00028767,120]
[422301907,1778800247000,-500.0,0.00028767,120]
[422301910,1778800247000,-1083.466321,0.00028767,7]
[422301908,1778800247000,-500.0,0.00028767,120]
[422301911,1778800247000,-1083.466321,0.00028767,7]
[422301915,1778800247000,-628.0,0.0002889,6]
[422301913,1778800247000,-1083.466321,0.00028767,7]
[422301914,1778800247000,-500.0,0.00028768,2]
[422301918,1778800247000,-1001.9,0.000293,2]
[422301906,1778800247000,-500.0,0.00028767,120]
[422301916,1778800247000,-500.0,0.00029104,17]
[422301919,1778800247000,-1001.9,0.00029329,2]
[422301920,1778800247000,-1001.9,0.00029357,2]
[422301921,1778800247000,-1001.9,0.00029386,2]